bitfinex-derivatives/quotes_SOLF0:USTF0_20250904
["timestamp","ask_amount","ask_price","bid_price","bid_amount"]
[1756975727996,7.94,207.42,207.38,10.0]
[1756975728198,117.22,207.43,207.38,10.0]
[1756975728399,7.94,207.42,207.38,10.0]
[1756975728598,117.22,207.43,207.38,10.0]
[1756975728793,7.94,207.42,207.38,10.0]
[1756975728996,117.22,207.43,207.38,10.0]
[1756975729298,7.94,207.42,207.38,10.0]
[1756975729799,117.22,207.43,207.38,10.0]
[1756975730096,7.94,207.42,207.38,10.0]
[1756975730692,117.22,207.43,207.38,10.0]
[1756975730893,7.94,207.42,207.38,10.0]
[1756975731088,120.28461355,207.43,207.38,10.0]
[1756975731891,7.94,207.42,207.38,10.0]
[1756975732092,3.06461355,207.43,207.38,10.0]
[1756975732399,7.94,207.4,207.38,10.0]
[1756975732600,7.94,207.41,207.38,10.0]
[1756975733395,18.87256025,207.42,207.38,10.0]
[1756975733593,7.94,207.41,207.38,10.0]
[1756975733897,0.03256025,207.42,207.38,10.0]
[1756975734096,7.94,207.41,207.38,10.0]
[1756975734688,18.87256025,207.42,207.38,10.0]
[1756975734892,7.94,207.41,207.38,10.0]
[1756975735097,18.87256025,207.42,207.38,10.0]
[1756975735290,7.94,207.41,207.38,10.0]
[1756975735492,18.87256025,207.42,207.38,10.0]
[1756975735688,7.94,207.41,207.38,10.0]
[1756975735890,18.87256025,207.42,207.38,10.0]
[1756975736494,7.94,207.41,207.38,10.0]
[1756975736704,18.87256025,207.42,207.38,10.0]
[1756975736994,7.94,207.41,207.38,10.0]
[1756975737199,18.87256025,207.42,207.38,10.0]
[1756975737697,7.94,207.41,207.38,10.0]
[1756975737898,18.87256025,207.42,207.38,10.0]
[1756975739000,7.94,207.41,207.38,10.0]
[1756975739496,18.87256025,207.42,207.38,10.0]
[1756975739998,0.03256025,207.42,207.38,10.0]
[1756975740896,7.94,207.41,207.38,10.0]
[1756975741301,0.03256025,207.42,207.38,10.0]
[1756975741500,7.94,207.41,207.38,10.0]
[1756975742301,0.03256025,207.42,207.38,10.0]
[1756975742502,7.94,207.41,207.38,10.0]
[1756975742805,7.94,207.4,207.38,10.0]
[1756975743097,49.94461355,207.41,207.38,10.0]
[1756975743301,7.94,207.4,207.38,10.0]
[1756975743894,49.94461355,207.41,207.38,10.0]
[1756975744099,7.94,207.4,207.38,10.0]
[1756975744295,7.94,207.39,207.38,10.0]
[1756975750419,7.97256025,207.42,207.39,7.47]
[1756975750622,30.65256025,207.42,207.4,7.47]
[1756975750922,22.71256025,207.42,207.38,17.47]
[1756975751226,7.94,207.41,207.38,17.47]
[1756975752123,22.71256025,207.42,207.38,17.47]
[1756975752325,7.38,207.41,207.38,17.47]
[1756975752525,117.26,207.41,207.39,7.47]
[1756975752825,7.41256025,207.42,207.39,7.47]
[1756975753025,7.38,207.41,207.39,7.47]
[1756975753223,7.38,207.41,207.38,10.0]
[1756975753425,0.03256025,207.42,207.38,10.0]
[1756975753728,7.38,207.41,207.38,10.0]
[1756975753930,0.03256025,207.42,207.38,10.0]
[1756975754432,7.38,207.4,207.38,10.0]
[1756975755829,117.24,207.41,207.38,10.0]
[1756975756028,7.38,207.4,207.38,10.0]
[1756975756427,117.24,207.41,207.38,10.0]
[1756975756627,7.38,207.4,207.38,10.0]
[1756975757224,117.24,207.39,207.38,10.0]
[1756975757436,119.20523308,207.39,207.38,10.0]
[1756975757624,126.58523308,207.39,207.38,10.0]
[1756975761131,9.34523308,207.39,207.38,10.0]
[1756975761332,126.58523308,207.39,207.38,10.0]
[1756975769632,9.34523308,207.39,207.38,10.0]
[1756975769837,119.20523308,207.39,207.38,17.47]
[1756975770038,9.34523308,207.39,207.38,10.0]
[1756975770339,126.58523308,207.39,207.38,10.0]
[1756975771139,1.96523308,207.39,207.38,10.0]
[1756975771339,119.20523308,207.39,207.38,17.47]
[1756975771534,119.20523308,207.39,207.38,10.0]
[1756975771740,1.96523308,207.39,207.38,10.0]
[1756975771940,119.20523308,207.39,207.38,10.0]
[1756975772343,126.58523308,207.39,207.38,10.0]
[1756975780646,131.99473905,207.39,207.38,10.0]
[1756975782950,131.99473905,207.39,207.32,7.47]
[1756975783151,7.52,207.34,207.32,7.47]
[1756975783449,117.24,207.33,207.28,7.22]
[1756975786048,117.24,207.33,207.27,1.96523308]
[1756975786448,117.24,207.33,207.28,7.22]
[1756975786753,117.24,207.33,207.27,1.96523308]
[1756975786952,117.24,207.33,207.28,7.22]
[1756975787654,117.24,207.33,207.27,1.96523308]
[1756975788354,117.24,207.33,207.28,7.22]
[1756975788554,117.24,207.33,207.27,1.96523308]
[1756975788746,117.24,207.33,207.28,7.22]
[1756975788951,117.24,207.33,207.27,1.96523308]
[1756975789147,117.24,207.33,207.28,7.22]
[1756975789557,117.24,207.33,207.27,1.96523308]
[1756975790852,117.24,207.33,207.28,7.22]
[1756975791058,117.24,207.33,207.27,1.96523308]
[1756975791351,117.24,207.33,207.28,7.22]
[1756975791755,117.24,207.33,207.27,1.96523308]
[1756975792156,124.76,207.33,207.28,7.22]
[1756975792558,117.24,207.33,207.27,1.96523308]
[1756975793057,124.76,207.33,207.28,7.22]
[1756975793455,117.24,207.33,207.27,1.96523308]
[1756975793654,124.76,207.33,207.28,7.22]
[1756975794159,124.76,207.33,207.27,1.96523308]
[1756975794355,124.76,207.33,207.27,9.18523308]
[1756975801462,124.76,207.33,207.27,1.96523308]
[1756975801663,126.72523308,207.33,207.27,1.96523308]
[1756975804169,126.72523308,207.33,207.26,7.22]
[1756975804562,126.72523308,207.33,207.22,4.0424674]
[1756975804563,1.96523308,207.31,207.22,11.2624674]
[1756975804864,7.52,207.3,207.23,1.96523308]
[1756975805063,117.22,207.29,207.23,1.96523308]
[1756975805362,117.2512981,207.29,207.23,1.96523308]
[1756975805563,7.52,207.28,207.23,1.96523308]
[1756975806067,117.2512981,207.29,207.23,1.96523308]
[1756975806961,117.2512981,207.29,207.21,4.0424674]
[1756975807166,7.52,207.28,207.22,1.96523308]
[1756975808167,7.52,207.28,207.21,7.22]
[1756975808367,7.52,207.28,207.22,1.96523308]
[1756975809467,7.52,207.28,207.21,7.22]
[1756975809668,7.52,207.26,207.23,7.22]
[1756975809962,32.94,207.27,207.23,7.22]
[1756975810367,32.94,207.27,207.22,1.96523308]
[1756975810863,32.94,207.27,207.21,1.96523308]
[1756975811068,7.52,207.26,207.21,1.96523308]
[1756975811268,32.94,207.27,207.21,1.96523308]
[1756975811664,7.52,207.26,207.21,1.96523308]
[1756975812165,7.77,207.26,207.21,1.96523308]
[1756975812369,32.94,207.27,207.21,1.96523308]
[1756975813071,7.77,207.28,207.21,1.96523308]
[1756975813269,7.77,207.26,207.21,1.96523308]
[1756975813770,1.99653118,207.29,207.21,9.46523308]
[1756975813965,22.73,207.28,207.21,9.46523308]
[1756975814367,22.73,207.28,207.21,1.96523308]
[1756975815472,7.77,207.28,207.21,1.96523308]
[1756975815674,7.77,207.26,207.21,1.96523308]
[1756975815866,23.22523308,207.27,207.21,9.44523308]
[1756975816272,7.77,207.26,207.21,9.44523308]
[1756975816874,23.22523308,207.27,207.21,9.44523308]
[1756975817269,7.77,207.26,207.21,7.48]
[1756975817477,21.26,207.27,207.21,7.48]
[1756975817976,7.77,207.26,207.21,7.48]
[1756975818481,21.26,207.27,207.21,7.48]
[1756975818775,3.65315781,207.26,207.21,7.48]
[1756975818978,7.77,207.24,207.21,7.48]
[1756975819178,21.26,207.27,207.21,7.48]
[1756975819379,3.65271536,207.26,207.21,7.48]
[1756975819575,7.77,207.24,207.17,7.48]
[1756975828692,3.59909849,207.23,207.17,7.48]
[1756975828888,3.59909849,207.22,207.14,7.48]
[1756975829088,7.77,207.23,207.14,7.48]
[1756975829389,3.59899278,207.22,207.14,7.48]
[1756975829589,0.03714427,207.21,207.14,7.48]
[1756975834798,3.68131831,207.2,207.14,7.48]
[1756975834997,0.03714427,207.21,207.14,7.48]
[1756975835197,3.68131831,207.2,207.14,7.48]
[1756975835402,0.03714427,207.21,207.14,7.48]
[1756975835699,3.68165389,207.2,207.14,7.48]
[1756975835894,0.03714427,207.21,207.14,7.48]
[1756975836093,3.68165389,207.2,207.14,7.48]
[1756975836297,0.03714427,207.21,207.14,7.48]
[1756975836495,3.68167243,207.2,207.14,7.48]
[1756975836699,0.03714427,207.21,207.14,7.48]
[1756975836901,3.68167243,207.2,207.14,7.48]
[1756975837204,0.03714427,207.21,207.14,7.48]
[1756975837401,3.68175743,207.2,207.14,7.48]
[1756975837602,0.03714427,207.21,207.14,7.48]
[1756975837803,3.68175743,207.2,207.14,7.48]
[1756975838000,0.03714427,207.21,207.14,7.48]
[1756975838298,3.68175743,207.2,207.14,7.48]
[1756975838605,0.03714427,207.21,207.14,10.5539897]
[1756975838797,3.68198758,207.2,207.14,3.0739897]
[1756975839002,7.80714427,207.21,207.15,7.5]
[1756975839202,7.80714427,207.21,207.12,7.5]
[1756975839203,3.68183438,207.2,207.12,7.5]
[1756975839403,7.80714427,207.21,207.14,7.5]
[1756975839603,3.68176072,207.2,207.14,7.5]
[1756975839902,7.80714427,207.21,207.14,7.5]
[1756975840103,3.68176075,207.2,207.14,7.5]
[1756975840309,7.80714427,207.21,207.14,7.5]
[1756975840602,3.68204765,207.2,207.14,7.5]
[1756975840804,7.80714427,207.21,207.14,7.5]
[1756975840997,3.6820391,207.2,207.14,7.5]
[1756975841201,7.80714427,207.21,207.14,7.5]
[1756975841402,3.68239443,207.2,207.14,7.5]
[1756975841602,7.80714427,207.21,207.14,7.5]
[1756975841802,3.68239443,207.2,207.14,7.5]
[1756975842001,7.80714427,207.21,207.14,7.5]
[1756975842203,3.68239443,207.2,207.14,7.5]
[1756975842405,7.80714427,207.21,207.14,7.5]
[1756975842702,3.68273575,207.2,207.14,7.5]
[1756975843004,7.80714427,207.21,207.14,7.5]
[1756975843205,3.68273575,207.2,207.14,7.5]
[1756975843398,7.80714427,207.21,207.14,7.5]
[1756975843594,3.68314486,207.2,207.14,7.5]
[1756975843795,7.80714427,207.21,207.14,7.5]
[1756975844096,3.68314486,207.2,207.14,7.5]
[1756975844294,7.80714427,207.21,207.13,3.0739897]
[1756975844295,3.68314486,207.19,207.13,3.0739897]
[1756975844499,7.23,207.2,207.14,7.48]
[1756975844702,3.68362567,207.19,207.13,3.0739897]
[1756975844906,7.23,207.2,207.14,7.48]
[1756975845203,3.6835915,207.19,207.13,3.0739897]
[1756975845499,3.6835915,207.18,207.14,7.48]
[1756975845706,7.23,207.2,207.14,7.48]
[1756975845905,3.68403903,207.19,207.13,3.0739897]
[1756975846103,0.03714427,207.21,207.14,7.48]
[1756975846104,3.68403903,207.18,207.14,7.48]
[1756975846307,7.23,207.16,207.14,7.48]
[1756975846808,7.23,207.2,207.1,7.48]
[1756975847008,7.23,207.18,207.1,7.48]
[1756975847306,7.23,207.16,207.1,7.48]
[1756975847500,7.26235433,207.16,207.1,7.48]
[1756975852012,0.03235433,207.16,207.13,7.48]
[1756975852211,0.03235433,207.16,207.12,3.0739897]
[1756975852515,0.03235433,207.16,207.13,7.48]
[1756975853114,0.03235433,207.16,207.14,3.0739897]
[1756975853315,0.03235433,207.16,207.15,7.48]
[1756975866722,0.03235433,207.16,207.15,7.96]
[1756975868128,0.03235433,207.16,207.15,11.0339897]
[1756975869528,0.03235433,207.16,207.15,7.96]
[1756975869827,0.03235433,207.16,207.15,11.0339897]
[1756975874529,0.03235433,207.16,207.15,10.5539897]
[1756975879434,0.03235433,207.16,207.15,9.44788942]
[1756975884036,0.03235433,207.16,207.15,7.48]
[1756975887138,0.03235433,207.16,207.11,4.05602604]
[1756975887344,7.26235433,207.16,207.12,7.31]
[1756975887544,7.26235433,207.16,207.14,1.96788942]
[1756975887945,7.26235433,207.16,207.1,4.05602604]
[1756975888245,7.26235433,207.16,207.14,1.96788942]
[1756975888943,7.23,207.15,207.14,1.96788942]
[1756975889541,7.23,207.15,207.12,7.31]
[1756975889740,0.03235433,207.16,207.13,1.96788942]
[1756975890044,7.23,207.15,207.13,9.27788942]
[1756975891341,7.23,207.15,207.13,1.96788942]
[1756975891847,0.03235433,207.16,207.13,1.96788942]
[1756975892042,7.23,207.15,207.13,1.96788942]
[1756975892735,0.03235433,207.16,207.11,1.96788942]
[1756975893142,7.23,207.15,207.11,1.96788942]
[1756975893542,7.23,207.15,207.1,7.31]
[1756975893543,0.03235433,207.16,207.1,9.27788942]
[1756975893940,7.23,207.15,207.1,9.27788942]
[1756975894143,0.03235433,207.16,207.1,9.27788942]
[1756975894747,7.23,207.15,207.1,9.27788942]
[1756975894942,0.03235433,207.16,207.1,9.27788942]
[1756975895241,7.23,207.15,207.1,9.27788942]
[1756975895444,0.03235433,207.16,207.1,9.27788942]
[1756975895748,7.23,207.15,207.1,1.96788942]
[1756975896446,0.03235433,207.16,207.1,1.96788942]
[1756975896847,7.23,207.15,207.1,1.96788942]
[1756975897350,0.03235433,207.16,207.1,1.96788942]
[1756975897649,7.26235433,207.16,207.1,9.27788942]
[1756975897846,0.03235433,207.16,207.15,7.31]
[1756975898251,0.03235433,207.16,207.14,9.27788942]
[1756975899253,0.03235433,207.16,207.15,7.31]
[1756975911464,7.27,207.22,207.15,7.31]
[1756975911666,7.27,207.22,207.2,9.41788942]
[1756975912858,0.03096475,207.23,207.21,7.45]
[1756975913056,7.30096475,207.23,207.14,7.45]
[1756975913257,0.03096475,207.23,207.18,1.96788942]
[1756975913464,7.27,207.21,207.16,1.96788942]
[1756975916667,1.96788942,207.22,207.16,1.96788942]
[1756975916965,7.27,207.21,207.16,1.96788942]
[1756975917166,7.27,207.22,207.16,1.96788942]
[1756975919569,7.27,207.22,207.14,7.45]
[1756975919768,7.27,207.22,207.15,1.96788942]
[1756975922965,7.27,207.2,207.11,4.05602604]
[1756975923170,7.27,207.18,207.11,1.96788942]
[1756975923367,3.7172203,207.17,207.11,1.96788942]
[1756975923670,3.7172203,207.16,207.11,9.41788942]
[1756975923870,7.27,207.14,207.11,9.41788942]
[1756975924570,7.27,207.14,207.11,7.45]
[1756975924767,7.27,207.14,207.11,1.96788942]
[1756975924969,7.27,207.14,207.11,9.41788942]
[1756975926580,0.03189845,207.16,207.13,1.96788942]
[1756975926581,7.27,207.15,207.13,1.96788942]
[1756975926867,0.03189845,207.16,207.13,1.96788942]
[1756975927070,0.03189845,207.16,207.15,9.41788942]
[1756975928172,0.03189845,207.16,207.15,7.45]
[1756975928573,0.03189845,207.16,207.15,9.41788942]
[1756975929480,0.03189845,207.16,207.15,7.45]
[1756975929668,0.03189845,207.16,207.15,9.41788942]
[1756975930075,0.03189845,207.16,207.15,7.45]
[1756975932272,0.03189845,207.16,207.15,9.41788942]
[1756975935776,0.03189845,207.16,207.15,1.96788942]
[1756975937078,0.03189845,207.16,207.11,1.96788942]
[1756975937271,7.32189845,207.16,207.1,9.42788942]
[1756975939478,7.32189845,207.16,207.1,7.46]
[1756975941475,0.03189845,207.16,207.08,10.0]
[1756975941777,7.29,207.15,207.08,10.0]
[1756975942176,0.03189845,207.16,207.08,10.0]
[1756975942375,7.29,207.15,207.08,10.0]
[1756975942677,0.03189845,207.16,207.08,10.0]
[1756975943081,7.29,207.15,207.08,10.0]
[1756975943480,0.03189845,207.16,207.08,10.0]
[1756975943679,7.29,207.15,207.08,10.0]
[1756975943881,0.03189845,207.16,207.08,10.0]
[1756975944080,7.29,207.15,207.09,0.03364565]
[1756975947680,10.36713352,207.15,207.09,0.03364565]
[1756975954892,7.29,207.13,207.09,0.03364565]
[1756975955890,3.07713352,207.15,207.09,0.03364565]
[1756975956102,7.29,207.14,207.09,0.03364565]
[1756975956400,7.29,207.15,207.09,0.03364565]
[1756975960506,75.59,207.15,207.09,0.03364565]
[1756975961207,7.29,207.15,207.09,0.03364565]
[1756975961403,7.29,207.15,207.09,7.49364565]
[1756975968214,0.03189845,207.16,207.09,7.49364565]
[1756975972714,0.03189845,207.16,207.09,10.57077917]
[1756975973317,7.29189845,207.16,207.09,7.49364565]
[1756975981318,7.29189845,207.16,207.09,0.03364565]
[1756975994228,5.40950597,207.15,207.09,0.03364565]
[1756975994422,7.78,207.14,207.09,0.03364565]
[1756975997527,13.18950597,207.14,207.09,0.03364565]
[1756975999529,7.78,207.12,207.09,0.03364565]
[1756976003933,1.97029001,207.13,207.09,0.03364565]
[1756976004532,7.78,207.12,207.09,0.03364565]
[1756976005429,1.97029001,207.13,207.09,0.03364565]
[1756976005629,7.78,207.12,207.09,0.03364565]
[1756976011640,7.78,207.1,207.09,0.03364565]
[1756976049165,9.75029001,207.1,207.09,0.03364565]
[1756976051369,7.78,207.1,207.09,0.03364565]
[1756976057674,0.03380298,207.12,207.09,0.03364565]
[1756976058063,7.64,207.11,207.09,0.03364565]
[1756976058471,0.03380298,207.12,207.09,0.03364565]
[1756976058774,7.64,207.11,207.09,0.03364565]
[1756976058968,0.03380298,207.12,207.09,0.03364565]
[1756976059273,7.64,207.11,207.09,0.03364565]
[1756976059470,0.03380298,207.12,207.09,0.03364565]
[1756976060978,7.64,207.11,207.09,0.03364565]
[1756976061378,0.03380298,207.12,207.09,0.03364565]
[1756976062677,7.64,207.11,207.09,0.03364565]
[1756976062977,0.03380298,207.12,207.09,0.03364565]
[1756976063373,7.64,207.11,207.09,0.03364565]
[1756976063668,0.03380298,207.12,207.09,0.03364565]
[1756976063872,0.03380298,207.12,207.1,7.51]
[1756976064276,0.03380298,207.12,207.09,0.03364565]
[1756976064477,0.03380298,207.12,207.1,7.51]
[1756976065669,0.03380298,207.12,207.09,0.03364565]
[1756976065874,0.03380298,207.12,207.1,7.51]
[1756976066276,0.03380298,207.12,207.1,11.06820332]
[1756976066579,0.03380298,207.12,207.11,7.51]
[1756976076184,7.64,207.11,207.09,0.03364565]
[1756976076386,7.64,207.11,207.09,7.54364565]
[1756976076780,7.67380298,207.12,207.1,7.51]
[1756976076985,0.03380298,207.12,207.09,0.03364565]
[1756976077286,0.03380298,207.12,207.1,7.51]
[1756976077486,0.03380298,207.12,207.09,0.03364565]
[1756976078185,0.03380298,207.12,207.1,7.51]
[1756976078890,0.03380298,207.12,207.09,0.03364565]
[1756976079985,0.03380298,207.12,207.1,7.51]
[1756976080392,0.03380298,207.12,207.09,0.03364565]
[1756976080892,0.03380298,207.12,207.1,10.58820332]
[1756976081087,0.03380298,207.12,207.11,7.51]
[1756976099202,7.88380298,207.12,207.1,10.53820332]
[1756976099601,0.03380298,207.12,207.11,7.46]
[1756976104395,7.85,207.24,207.12,7.46]
[1756976104604,7.85,207.24,207.17,7.46]
[1756976105701,7.85,207.24,207.18,0.03597034]
[1756976107712,7.85,207.29,207.19,3.07820332]
[1756976108211,7.85,207.29,207.22,0.03310189]
[1756976117222,124.81,207.29,207.22,0.03310189]
[1756976117618,124.81,207.29,207.23,7.27]
[1756976118822,7.85,207.29,207.22,0.03310189]
[1756976119224,7.85,207.29,207.23,7.27]
[1756976119824,7.85,207.29,207.22,0.03310189]
[1756976123429,1.96749719,207.28,207.22,0.03310189]
[1756976123626,7.75,207.27,207.22,0.03310189]
[1756976134236,9.71749719,207.27,207.22,0.03310189]
[1756976136038,126.65749719,207.27,207.22,0.03310189]
[1756976145639,1.96749719,207.25,207.22,0.03310189]
[1756976145843,7.32,207.24,207.22,0.03310189]
[1756976149448,124.24,207.23,207.22,0.03310189]
[1756976153151,7.32,207.23,207.22,0.03310189]
[1756976153752,40.2,207.23,207.22,0.03310189]
[1756976158557,7.32,207.23,207.22,0.03310189]
[1756976163467,5.40950597,207.27,207.22,0.03310189]
[1756976163765,116.92,207.28,207.23,1.96749719]
[1756976163966,7.32,207.28,207.25,1.96749719]
[1756976164171,5.40950597,207.3,207.25,9.25749719]
[1756976164573,7.32,207.3,207.25,9.25749719]
[1756976164770,7.32,207.3,207.25,1.9992675]
[1756976165162,124.24,207.3,207.25,1.9992675]
[1756976170070,1.96749719,207.28,207.25,0.03177031]
[1756976170272,9.28749719,207.26,207.25,0.03177031]
[1756976175576,7.32,207.26,207.25,0.03177031]
[1756976184184,37.6,207.26,207.25,0.03177031]
[1756976196492,7.32,207.26,207.25,0.03177031]
[1756976200896,13.29950597,207.28,207.25,7.53177031]
[1756976201197,5.40950597,207.29,207.25,7.53177031]
[1756976201397,7.89,207.28,207.25,7.53177031]
[1756976201599,7.89,207.28,207.25,0.03177031]
[1756976201895,5.40950597,207.29,207.25,0.03177031]
[1756976202096,7.74,207.28,207.25,0.03177031]
[1756976202295,5.40950597,207.29,207.25,0.03177031]
[1756976202697,7.74,207.28,207.25,0.03177031]
[1756976202898,5.40950597,207.29,207.25,0.03177031]
[1756976203098,7.74,207.28,207.25,0.03177031]
[1756976203398,5.40950597,207.29,207.25,0.03177031]
[1756976203797,7.74,207.28,207.25,0.03177031]
[1756976203998,5.40950597,207.3,207.25,0.03177031]
[1756976204196,7.74,207.29,207.25,0.03177031]
[1756976204697,5.40950597,207.3,207.25,0.03177031]
[1756976204893,7.74,207.29,207.25,0.03177031]
[1756976205098,13.14950597,207.29,207.25,0.03177031]
[1756976205407,7.74,207.29,207.25,0.03177031]
[1756976207402,13.14950597,207.29,207.25,0.03177031]
[1756976208905,5.40950597,207.26,207.25,0.03177031]
[1756976209105,13.14950597,207.26,207.25,0.03177031]
[1756976215009,130.02950597,207.26,207.25,0.03177031]
[1756976219013,124.62,207.26,207.25,0.03177031]
[1756976226116,7.74,207.26,207.25,0.03177031]
[1756976226316,124.6,207.26,207.25,0.03177031]
[1756976231924,7.74,207.26,207.25,0.03177031]
[1756976232128,124.6,207.26,207.25,0.03177031]
[1756976233030,7.74,207.26,207.25,0.03177031]
[1756976233325,124.6,207.26,207.25,0.03177031]
[1756976233528,7.74,207.26,207.25,0.03177031]
[1756976233733,124.6,207.26,207.25,0.03177031]
[1756976235536,7.74,207.26,207.25,0.03177031]
[1756976235730,124.6,207.26,207.25,0.03177031]
[1756976237736,7.74,207.26,207.25,0.03177031]
[1756976237934,124.6,207.26,207.25,0.03177031]
[1756976240432,7.74,207.26,207.25,0.03177031]
[1756976240735,124.6,207.26,207.25,7.51177031]
[1756976240931,124.6,207.26,207.25,0.03177031]
[1756976243539,7.74,207.26,207.25,0.03177031]
[1756976243740,124.6,207.26,207.25,0.03177031]
[1756976247540,5.40950597,207.28,207.25,0.03177031]
[1756976247738,124.29,207.27,207.25,7.51177031]
[1756976247943,116.86,207.26,207.25,7.51177031]
[1756976248335,116.86,207.26,207.25,0.03177031]
[1756976248536,124.29,207.26,207.25,0.03177031]
[1756976251340,124.27,207.26,207.25,0.03177031]
[1756976252744,7.43,207.26,207.25,0.03177031]
[1756976253243,124.27,207.26,207.25,0.03177031]
[1756976266449,116.82,207.26,207.25,0.03177031]
[1756976266655,124.05,207.26,207.25,0.03177031]
[1756976288168,126.01726244,207.26,207.25,0.03177031]
[1756976288370,9.19726244,207.26,207.25,0.03177031]
[1756976288572,125.99726244,207.26,207.25,0.03177031]
[1756976289369,7.23,207.25,207.21,10.0]
[1756976289564,116.8,207.24,207.21,10.0]
[1756976289872,7.23,207.23,207.21,10.0]
[1756976290067,116.8,207.24,207.21,10.0]
[1756976290068,124.03,207.22,207.21,10.0]
[1756976298475,7.23,207.22,207.21,10.0]
[1756976299174,37.77,207.22,207.21,10.0]
[1756976305380,39.73726244,207.22,207.21,10.0]
[1756976305581,37.77,207.22,207.21,10.0]
[1756976309580,37.77,207.22,207.21,1.98]
[1756976309879,43.17950597,207.22,207.11,7.53]
[1756976310485,0.03329412,207.19,207.11,7.53]
[1756976310782,7.82,207.18,207.11,7.53]
[1756976315785,3.07640764,207.17,207.03,3.07640764]
[1756976316086,7.82,207.16,207.04,7.69]
[1756976316386,0.0310521,207.12,207.04,7.69]
[1756976319288,7.8510521,207.12,207.04,7.69]
[1756976322496,0.0310521,207.12,207.07,7.31]
[1756976325297,0.0310521,207.12,207.06,3.07640764]
[1756976325799,7.8410521,207.12,207.07,7.31]
[1756976325996,7.8410521,207.12,207.04,3.07640764]
[1756976326190,7.8410521,207.12,207.05,7.31]
[1756976329402,7.8410521,207.12,207.06,7.31]
[1756976329698,7.81,207.12,207.06,7.31]
[1756976330104,0.03637395,207.11,207.06,7.31]
[1756976331101,0.03637395,207.11,207.04,7.31]
[1756976338805,0.03637395,207.11,207.09,3.07640764]
[1756976339005,0.03637395,207.11,207.1,7.31]
[1756976357727,7.46637395,207.11,207.1,7.31]
[1756976358430,7.46637395,207.11,207.08,7.56338248]
[1756976358823,0.03637395,207.11,207.08,0.03338248]
[1756976359326,0.03637395,207.11,207.09,7.53]
[1756976359529,0.03637395,207.11,207.08,0.03338248]
[1756976360032,0.03637395,207.11,207.09,7.53]
[1756976360224,0.03637395,207.11,207.08,0.03338248]
[1756976360530,0.03637395,207.11,207.09,7.53]
[1756976360726,0.03637395,207.11,207.08,0.03338248]
[1756976361128,0.03637395,207.11,207.09,7.53]
[1756976361826,0.03637395,207.11,207.08,0.03338248]
[1756976362128,0.03637395,207.11,207.09,7.53]
[1756976362330,0.03637395,207.11,207.08,0.03338248]
[1756976362720,0.03637395,207.11,207.09,7.53]
[1756976363025,0.03637395,207.11,207.08,0.03338248]
[1756976363729,0.03637395,207.11,207.09,7.53]
[1756976363929,0.03637395,207.11,207.08,0.03338248]
[1756976364129,0.03637395,207.11,207.09,7.53]
[1756976364330,0.03637395,207.11,207.08,0.03338248]
[1756976364531,0.03637395,207.11,207.09,7.53]
[1756976365234,0.03637395,207.11,207.08,0.03338248]
[1756976365433,0.03637395,207.11,207.1,1.96943687]
[1756976365630,0.03637395,207.11,207.1,9.49943687]
[1756976377234,0.03637395,207.11,207.1,7.53]
[1756976377440,0.03637395,207.11,207.1,9.49943687]
[1756976393448,0.03637395,207.11,207.1,7.53]
[1756976402552,7.81,207.2,207.1,7.53]
[1756976402848,13.21950597,207.23,207.16,1.96943687]
[1756976403053,7.81,207.23,207.16,1.96943687]
[1756976403553,7.81,207.23,207.18,1.96943687]
[1756976403755,7.81,207.23,207.19,4.36970437]